fUST/lending_fUST_20251116
["ID","MTS","AMOUNT","RATE_DAILY","PERIOD"]
[394084846,1763256633523,-500.0,0.00018673,2]
[394084847,1763256633533,-122.8971855,0.00018673,2]
[394084947,1763256641223,-3e-08,0.0001866,2]
[394085607,1763256676200,1515.6541821,0.00018572,2]
[394085608,1763256718473,8484.3558179,0.0001856,2]
[394085609,1763256718497,10000.01,0.0001856,2]
[394085610,1763256718609,10000.01,0.0001856,2]
[394085611,1763256718631,10000.01,0.0001856,2]
[394085612,1763256728622,592.0,0.0003287,120]
[394085613,1763256731414,-5000.0,0.00018373,2]
[394085614,1763256733909,152.42,0.00039384,20]
[394085615,1763256735093,-300.0,0.00018559,2]
[394085616,1763256735118,-644.48605434,0.0001856,2]
[394085618,1763256757907,-300.0,0.0001819,2]
[394085619,1763256759358,-208.68983792,0.0001819,2]
[394085620,1763256760722,322.7588913,0.00018,2]
[394085621,1763256760909,-1499.37055599,0.0001819,2]
[394085622,1763256765075,-1000.13442187,0.0001819,2]
[394085623,1763256765105,-2999.74115626,0.00018374,2]
[394085624,1763256765283,-2000.25884374,0.00018374,2]
[394085625,1763256765314,-500.0,0.00018559,2]
[394085626,1763256765350,-500.0,0.00018559,2]
[394085627,1763256765381,-500.0,0.00018559,2]
[394085628,1763256765412,-500.0,0.00018559,2]
[394085629,1763256765446,-500.0,0.00018559,2]
[394085630,1763256765475,-499.49231252,0.00018559,2]
[394085631,1763256765667,-0.50768748,0.00018559,2]
[394085632,1763256765696,-615.92206836,0.00018559,2]
[394085633,1763256765725,-531.37771569,0.00018559,2]
[394085634,1763256765754,-500.0,0.00018559,2]
[394085635,1763256765784,-500.0,0.00018559,2]
[394085636,1763256765812,-500.0,0.00018559,2]
[394085637,1763256765931,-500.0,0.00018559,2]
[394085638,1763256765959,-500.0,0.00018559,2]
[394085639,1763256765985,-500.0,0.00018559,2]
[394085640,1763256766013,-500.0,0.00018559,2]
[394085641,1763256766042,-204.39505694,0.00018559,2]
[394085642,1763256766146,-295.60494306,0.00018559,2]
[394085643,1763256766176,-500.0,0.00018559,2]
[394085644,1763256766205,-500.0,0.00018559,2]
[394085645,1763256766232,-500.0,0.00018559,2]
[394085646,1763256766261,-500.0,0.00018559,2]
[394085647,1763256766291,-500.0,0.00018559,2]
[394085648,1763256766319,-166.23425824,0.00018559,2]
[394085649,1763256766351,-500.0,0.00018559,2]
[394085650,1763256766380,-500.0,0.00018559,2]
[394085651,1763256766409,-500.0,0.00018559,2]
[394085652,1763256766437,-500.0,0.00018559,2]
[394085653,1763256766547,-500.0,0.00018559,2]
[394085654,1763256766576,-500.0,0.00018559,2]
[394085655,1763256766607,-500.0,0.00018559,2]
[394085656,1763256766636,-500.0,0.00018559,2]
[394085657,1763256766668,-500.0,0.00018559,2]
[394085658,1763256766697,-500.0,0.00018559,2]
[394085659,1763256766726,-500.0,0.00018559,2]
[394085660,1763256766754,-500.0,0.00018559,2]
[394085661,1763256766785,-500.0,0.00018559,2]
[394085662,1763256768353,-8675.1764909,0.0001856,2]
[394085663,1763256768371,-10000.01,0.0001856,2]
[394085664,1763256768397,-10000.01,0.0001856,2]
[394085665,1763256768973,-10000.01,0.0001856,2]
[394085666,1763256769079,-10000.01,0.0001856,2]
[394085667,1763256769188,-10000.01,0.0001856,2]
[394085668,1763256769312,-10000.01,0.0001856,2]
[394085669,1763256774087,-10000.01,0.0001856,2]
[394085670,1763256774202,-10000.01,0.0001856,2]
[394085671,1763256780319,-10000.01,0.0001856,2]
[394085672,1763256780495,-10000.01,0.0001856,2]
[394085673,1763256780614,-10000.01,0.0001856,2]
[394085674,1763256780720,-10000.01,0.0001856,2]
[394085675,1763256780848,-10000.01,0.0001856,2]
[394085676,1763256780884,-383.49920011,0.0001856,2]
[394085677,1763256781037,-10000.01,0.0001856,2]
[394085678,1763256781164,-10000.01,0.0001856,2]
[394085679,1763256781306,-10000.01,0.0001856,2]
[394085680,1763256781536,158.91,5e-05,2]
[394085681,1763256781834,158.91,5.2e-05,2]
[394085682,1763256782122,158.91,5.4e-05,2]
[394085683,1763256782427,158.91,5.6e-05,2]
[394085684,1763256782734,158.91,5.7e-05,2]
[394085685,1763256783075,158.91,5.9e-05,2]
[394085686,1763256783226,-300.0,0.00018559,2]
[394085687,1763256783272,-9400.01,0.0001856,2]
[394085688,1763256783364,-10000.01,0.0001856,2]
[394085689,1763256783402,158.91,6.1e-05,2]
[394085690,1763256783688,158.91,6.3e-05,2]
[394085691,1763256783970,158.91,6.5e-05,2]
[394085692,1763256784283,158.91,6.7e-05,2]
[394085693,1763256784573,158.91,6.8e-05,2]
[394085694,1763256784861,158.91,7e-05,2]
[394085695,1763256785152,158.91,7.2e-05,2]
[394085696,1763256785430,158.91,7.4e-05,2]
[394085697,1763256785785,158.91,7.6e-05,2]
[394085698,1763256786097,158.91,7.8e-05,2]
[394085699,1763256786297,-10000.01,0.0001856,2]
[394085700,1763256786378,158.91,7.9e-05,2]
[394085701,1763256786441,-10000.01,0.0001856,2]
[394085702,1763256786539,-10000.01,0.0001856,2]
[394085703,1763256786641,-10000.01,0.0001856,2]
[394085704,1763256786670,158.91,8.1e-05,2]
[394085705,1763256786941,158.91,8.3e-05,2]
[394085706,1763256787136,-10000.01,0.0001856,2]
[394085707,1763256787393,158.91,8.5e-05,2]
[394085708,1763256787417,-10000.01,0.0001856,2]
[394085709,1763256787430,-10000.01,0.0001856,2]
[394085710,1763256787550,158.91,8.7e-05,2]
[394085711,1763256787933,158.91,8.9e-05,2]
[394085712,1763256788226,158.91,9e-05,2]
[394085713,1763256788507,158.91,9.2e-05,2]
[394085714,1763256788801,158.91,9.4e-05,2]
[394085715,1763256789083,158.91,9.6e-05,2]
[394085716,1763256789510,158.91,9.8e-05,2]
[394085717,1763256789798,158.91,0.0001,2]
[394085718,1763256790086,158.91,0.000101,2]
[394085719,1763256790372,158.91,0.000103,2]
[394085720,1763256790651,158.91,0.000105,2]
[394085721,1763256791011,158.91,0.000107,2]
[394085722,1763256791302,158.91,0.000109,2]
[394085723,1763256791575,158.91,0.000111,2]
[394085724,1763256791881,158.91,0.000112,2]
[394085725,1763256792148,158.91,0.000114,2]
[394085726,1763256792423,158.91,0.000116,2]
[394085727,1763256792820,158.91,0.000118,2]
[394085728,1763256793213,158.91,0.00012,2]
[394085729,1763256793504,158.91,0.000122,2]
[394085730,1763256793778,158.91,0.000123,2]
[394085731,1763256794237,158.91,0.000125,2]
[394085732,1763256794406,158.91,0.000127,2]
[394085733,1763256794688,158.91,0.000129,2]
[394085734,1763256794974,158.91,0.000131,2]
[394085735,1763256795242,158.91,0.000133,2]
[394085736,1763256795520,158.91,0.000134,2]
[394085737,1763256795799,158.91,0.000136,2]
[394085738,1763256796078,158.91,0.000138,2]
[394085739,1763256798446,-10000.01,0.0001856,2]
[394085740,1763256798596,-10000.01,0.0001856,2]
[394085741,1763256798705,-10000.01,0.0001856,2]
[394085742,1763256798831,-10000.01,0.0001856,2]
[394085743,1763256798935,-10000.01,0.0001856,2]
[394085744,1763256801499,-10000.01,0.0001856,2]
[394085745,1763256801614,-10000.01,0.0001856,2]
[394085746,1763256801725,-10000.01,0.0001856,2]
[394085747,1763256801866,-10000.01,0.0001856,2]
[394085748,1763256801981,-10000.01,0.0001856,2]
[394085749,1763256802095,-10000.01,0.0001856,2]
[394085750,1763256829815,211.0,0.0003938,120]
[394085751,1763256841732,158.74,5e-05,2]
[394085755,1763256904442,1585.62,0.00032877,120]
[394085756,1763256911708,239.80338321,0.0003938,120]
[394085757,1763256966319,1022.66949044,0.0003938,30]
[394085758,1763256995379,489.0,0.00018,2]
[394085762,1763257040361,584.57,0.00018548,3]
[394085763,1763257082024,181.64,5e-05,2]
[394085764,1763257082333,181.64,9.5e-05,2]
[394085765,1763257082628,181.64,0.00014,2]
[394085768,1763257141762,153.58,5e-05,2]
[394085769,1763257142149,153.58,5.2e-05,2]
[394085770,1763257142445,153.58,5.4e-05,2]
[394085771,1763257142789,153.58,5.6e-05,2]
[394085772,1763257143143,153.58,5.7e-05,2]
[394085773,1763257143480,153.58,5.9e-05,2]
[394085774,1763257143760,153.58,6.1e-05,2]
[394085775,1763257144115,153.58,6.3e-05,2]
[394085776,1763257144436,153.58,6.5e-05,2]
[394085777,1763257144488,162.0,1.08e-06,2]
[394085778,1763257144805,153.58,6.7e-05,2]
[394085779,1763257145090,153.58,6.8e-05,2]
[394085780,1763257145572,153.58,7e-05,2]
[394085781,1763257145882,153.58,7.2e-05,2]
[394085782,1763257146160,153.58,7.4e-05,2]
[394085783,1763257146464,153.58,7.6e-05,2]
[394085784,1763257146769,153.58,7.8e-05,2]
[394085785,1763257147052,153.58,7.9e-05,2]
[394085786,1763257147881,153.58,8.1e-05,2]
[394085787,1763257150356,153.58,8.3e-05,2]
[394085788,1763257151386,153.58,8.5e-05,2]
[394085789,1763257151721,153.58,8.7e-05,2]
[394085790,1763257152057,153.58,8.9e-05,2]
[394085791,1763257152380,153.58,9e-05,2]
[394085792,1763257152691,153.58,9.2e-05,2]
[394085793,1763257152927,4446.16968869,0.00018,2]
[394085794,1763257152967,153.58,9.4e-05,2]
[394085795,1763257153277,153.58,9.6e-05,2]
[394085796,1763257153604,153.58,9.8e-05,2]
[394085797,1763257153883,153.58,0.0001,2]
[394085798,1763257154230,153.58,0.000101,2]
[394085799,1763257154531,153.58,0.000103,2]
[394085800,1763257154930,153.58,0.000105,2]
[394085801,1763257155132,153.58,0.000107,2]
[394085802,1763257155442,153.58,0.000109,2]
[394085803,1763257155737,153.58,0.000111,2]
[394085804,1763257156087,153.58,0.000112,2]
[394085805,1763257156429,153.58,0.000114,2]
[394085806,1763257156773,153.58,0.000116,2]
[394085807,1763257157072,153.58,0.000118,2]
[394085808,1763257157360,153.58,0.00012,2]
[394085809,1763257157631,153.58,0.000122,2]
[394085810,1763257157904,153.58,0.000123,2]
[394085811,1763257158180,153.58,0.000125,2]
[394085812,1763257158478,153.58,0.000127,2]
[394085813,1763257158747,153.58,0.000129,2]
[394085814,1763257159150,153.58,0.000131,2]
[394085815,1763257159439,153.58,0.000133,2]
[394085816,1763257159747,153.58,0.000134,2]
[394085817,1763257160052,153.58,0.000136,2]
[394085818,1763257160517,153.58,0.000138,2]
[394085819,1763257160803,153.58,0.00014,2]
[394085820,1763257175533,5000.0,0.00018,2]
[394085821,1763257201741,154.31,5e-05,2]
[394085822,1763257202146,154.31,7.3e-05,2]
[394085823,1763257202522,154.31,9.5e-05,2]
[394085824,1763257202807,154.31,0.000118,2]
[394085825,1763257203090,-337.66952295,0.00018225,2]
[394085826,1763257203128,154.31,0.00014,2]
[394085827,1763257205846,-462.83238797,0.00018225,2]
[394085828,1763257206138,5000.0,0.00018,2]
[394085829,1763257209240,-170.11,0.00018225,2]
[394085830,1763257210895,-478.26213901,0.00018225,2]
[394085831,1763257213946,-442.73966579,0.00018225,2]
[394085832,1763257217241,-358.32391441,0.00018225,2]
[394085836,1763257261598,204.54,5e-05,2]
[394085837,1763257262514,204.54,5.2e-05,2]
[394085838,1763257262948,204.54,5.4e-05,2]
[394085839,1763257263155,204.54,5.6e-05,2]
[394085840,1763257263426,204.54,5.7e-05,2]
[394085841,1763257263814,204.54,5.9e-05,2]
[394085842,1763257264166,204.54,6.1e-05,2]
[394085843,1763257264499,204.54,6.3e-05,2]
[394085844,1763257264796,204.54,6.5e-05,2]
[394085845,1763257265072,204.54,6.7e-05,2]
[394085846,1763257265351,204.54,6.8e-05,2]
[394085847,1763257265809,204.54,7e-05,2]
[394085848,1763257266113,204.54,7.2e-05,2]
[394085849,1763257266392,204.54,7.4e-05,2]
[394085850,1763257266724,204.54,7.6e-05,2]
[394085851,1763257267041,204.54,7.8e-05,2]
[394085852,1763257267311,204.54,7.9e-05,2]
[394085853,1763257267713,204.54,8.1e-05,2]
[394085854,1763257267978,204.54,8.3e-05,2]
[394085855,1763257268242,204.54,8.5e-05,2]
[394085856,1763257268513,204.54,8.7e-05,2]
[394085857,1763257268805,204.54,8.9e-05,2]
[394085858,1763257269086,204.54,9e-05,2]
[394085859,1763257269370,204.54,9.2e-05,2]
[394085860,1763257269660,204.54,9.4e-05,2]
[394085861,1763257269938,204.54,9.6e-05,2]
[394085862,1763257270223,204.54,9.8e-05,2]
[394085863,1763257270510,204.54,0.0001,2]
[394085864,1763257270798,204.54,0.000101,2]
[394085865,1763257271107,204.54,0.000103,2]
[394085866,1763257271355,204.54,0.000105,2]
[394085867,1763257271828,204.54,0.000107,2]
[394085868,1763257272176,204.54,0.000109,2]
[394085869,1763257272462,204.54,0.000111,2]
[394085870,1763257272737,204.54,0.000112,2]
[394085871,1763257273020,204.54,0.000114,2]
[394085872,1763257273312,204.54,0.000116,2]
[394085873,1763257273820,204.54,0.000118,2]
[394085874,1763257274188,204.54,0.00012,2]
[394085875,1763257274537,204.54,0.000122,2]
[394085876,1763257274841,204.54,0.000123,2]
[394085877,1763257275520,204.54,0.000125,2]
[394085878,1763257275809,204.54,0.000127,2]
[394085879,1763257276195,204.54,0.000129,2]
[394085880,1763257276558,204.54,0.000131,2]
[394085881,1763257276898,204.54,0.000133,2]
[394085882,1763257277303,204.54,0.000134,2]
[394085883,1763257277477,204.54,0.000136,2]
[394085884,1763257277759,204.54,0.000138,2]
[394085885,1763257278156,204.54,0.00014,2]
[394085886,1763257357449,-237.20361849,0.00018225,2]
[394085887,1763257390595,2512.85875138,0.00018,2]
[394085888,1763257391764,826.31435,0.00039377,120]
[394085889,1763257396607,382.27809701,0.00017718,2]
[394085890,1763257417306,-315.85,0.00018183,2]
[394085891,1763257419491,-414.81119846,0.00018183,2]
[394085892,1763257423622,-300.0,0.00018183,2]
[394085893,1763257425027,201.910012,0.00039377,120]
[394085894,1763257425781,-353.17046403,0.00018183,2]
[394085895,1763257429032,-521.80173988,0.00018183,2]
[394085896,1763257430540,-411.40377341,0.00018183,2]
[394085897,1763257434386,203.17046403,0.00018,2]
[394085898,1763257447897,209.58094,0.00039377,120]
[394085902,1763257475001,350.0,0.000205,20]
[394085905,1763257537323,-224.04654744,0.00018134,2]
[394085906,1763257537350,-36.97649824,0.00018183,2]
[394085907,1763257627620,5684.0,0.00017904,2]
[394085908,1763257632630,589.0,0.00017709,2]
[394085910,1763257651560,1000.0,0.00032,120]
[394085943,1763257831904,-134.98632598,0.00018183,2]
[394085944,1763257831913,-150.0,0.00018209,2]
[394085945,1763257831922,-61.29361702,0.00018358,2]
[394085946,1763257831933,-442.0666617,0.00018358,2]
[394085947,1763257831945,-698.75772006,0.00018358,2]
[394086377,1763257838996,223.78378478,0.00039376,120]
[394086412,1763257839320,-1922.47675034,0.00018358,2]
[394086418,1763257839375,-799.86809716,0.00018358,2]
[394086420,1763257839385,-589.0,0.00018362,2]
[394086422,1763257839394,-3750.21259419,0.00018371,2]
[394086424,1763257839403,-1509.10911711,0.00018436,2]
[394086426,1763257839413,-300.0,0.00018452,2]
[394086428,1763257839423,-940.0,0.00018452,2]
[394086431,1763257839432,-35393.05634886,0.00018453,2]
[394086434,1763257839448,-22665.79891213,0.00018453,2]
[394086493,1763257840190,-3e-08,0.00018453,2]
[394086786,1763257846125,-12016.26611802,0.00018453,2]
[394086787,1763257846136,-4726.43693686,0.00018453,2]
[394086788,1763257846148,-483.51,0.00018453,2]
[394086789,1763257846178,-14193.25563187,0.00018453,2]
[394086805,1763257849699,926.67,0.00018443,3]
[394086806,1763257860355,463.33,0.00018443,3]
[394086807,1763257861633,151.17,5e-05,2]
[394086808,1763257861920,151.17,5.2e-05,2]
[394086809,1763257862203,151.17,5.5e-05,2]
[394086810,1763257862497,151.17,5.7e-05,2]
[394086811,1763257862547,-300.0,0.00018452,2]
[394086812,1763257862572,-800521.67605223,0.00018453,2]
[394086813,1763257862595,-4756.10940877,0.00018458,2]
[394086814,1763257863309,251.28356941,0.00039376,120]
[394086815,1763257863414,151.17,5.9e-05,2]
[394086816,1763257863759,151.17,6.2e-05,2]
[394086817,1763257864066,151.17,6.4e-05,2]
[394086818,1763257864368,151.17,6.6e-05,2]
[394086819,1763257864645,151.17,6.8e-05,2]
[394086820,1763257864914,151.17,7.1e-05,2]
[394086821,1763257865302,151.17,7.3e-05,2]
[394086822,1763257865625,151.17,7.5e-05,2]
[394086823,1763257865903,151.17,7.8e-05,2]
[394086824,1763257866245,151.17,8e-05,2]
[394086825,1763257866513,151.17,8.2e-05,2]
[394086826,1763257866786,151.17,8.5e-05,2]
[394086827,1763257867132,151.17,8.7e-05,2]
[394086828,1763257867408,151.17,8.9e-05,2]
[394086829,1763257867679,151.17,9.2e-05,2]
[394086830,1763257867960,151.17,9.4e-05,2]
[394086831,1763257868262,151.17,9.6e-05,2]
[394086832,1763257868510,151.17,9.8e-05,2]
[394086833,1763257868888,151.17,0.000101,2]
[394086834,1763257869191,151.17,0.000103,2]
[394086835,1763257869513,151.17,0.000105,2]
[394086836,1763257869806,151.17,0.000108,2]
[394086837,1763257870130,151.17,0.00011,2]
[394086838,1763257870449,151.17,0.000112,2]
[394086839,1763257870786,151.17,0.000115,2]
[394086840,1763257871126,231.67,0.00018548,3]
[394086841,1763257871185,151.17,0.000117,2]
[394086842,1763257872025,151.17,0.000119,2]
[394086843,1763257872372,151.17,0.000122,2]
[394086844,1763257872735,151.17,0.000124,2]
[394086845,1763257872920,151.17,0.000126,2]
[394086846,1763257873194,151.17,0.000128,2]
[394086847,1763257873467,151.17,0.000131,2]
[394086848,1763257873752,151.17,0.000133,2]
[394086849,1763257874082,151.17,0.000135,2]
[394086850,1763257874406,151.17,0.000138,2]
[394086851,1763257881709,695.01,0.00018548,3]
[394086852,1763257905458,290.093,0.00017718,2]
[394086853,1763257906040,151.0,0.000178,2]
[394086854,1763257906389,151.0,0.00017,2]
[394086855,1763257906700,151.0,0.000163,2]
[394086856,1763257921594,151.16,5e-05,2]
[394086857,1763258059060,242.88010278,0.00018,2]
[394086858,1763258064573,2000.0,0.00039375,60]
[394086859,1763258069531,-170.40059512,0.00018195,2]
[394086860,1763258069553,-4587.61524691,0.00018352,2]
[394086861,1763258069575,-4460.26790296,0.00018447,2]
[394086862,1763258069597,-4460.26790294,0.0001845,2]
[394086863,1763258069620,-300.0,0.00018451,2]
[394086864,1763258069643,-500.0,0.00018452,2]
[394086865,1763258069668,-427.1097138,0.00018452,2]
[394086866,1763258069693,-500.0,0.00018452,2]
[394086867,1763258069719,-500.0,0.00018452,2]
[394086868,1763258069743,-500.0,0.00018452,2]
[394086869,1763258069772,-500.0,0.00018452,2]
[394086870,1763258069879,-500.0,0.00018452,2]
[394086871,1763258069904,-404.770838,0.00018452,2]
[394086872,1763258069928,-500.0,0.00018452,2]
[394086873,1763258069953,-500.0,0.00018452,2]
[394086874,1763258069978,-500.0,0.00018452,2]
[394086875,1763258070003,-500.0,0.00018452,2]
[394086876,1763258070032,-500.0,0.00018452,2]
[394086877,1763258070060,-500.0,0.00018452,2]
[394086878,1763258070086,-500.0,0.00018452,2]
[394086879,1763258070110,-500.0,0.00018452,2]
[394086880,1763258070139,-500.0,0.00018452,2]
[394086881,1763258070164,-500.0,0.00018452,2]
[394086882,1763258070189,-500.0,0.00018452,2]
[394086883,1763258070215,-500.0,0.00018452,2]
[394086884,1763258070240,-500.0,0.00018452,2]
[394086885,1763258070264,-500.0,0.00018452,2]
[394086886,1763258070289,-500.0,0.00018452,2]
[394086887,1763258070313,-300.0,0.00018452,2]
[394086888,1763258070336,-612.22613148,0.00018452,2]
[394086889,1763258070358,-500.0,0.00018452,2]
[394086890,1763258070383,-500.0,0.00018452,2]
[394086891,1763258070409,-500.0,0.00018452,2]
[394086892,1763258070432,-500.0,0.00018452,2]
[394086893,1763258070455,-500.0,0.00018452,2]
[394086894,1763258070480,-500.0,0.00018452,2]
[394086895,1763258070506,-500.0,0.00018452,2]
[394086896,1763258070531,-500.0,0.00018452,2]
[394086897,1763258070553,-500.0,0.00018452,2]
[394086898,1763258070577,-500.0,0.00018452,2]
[394086899,1763258070600,-641.24544912,0.00018452,2]
[394086900,1763258070624,-200.704505,0.00018452,2]
[394086901,1763258070652,-500.0,0.00018452,2]
[394086902,1763258070678,-500.0,0.00018452,2]
[394086903,1763258070702,-500.0,0.00018452,2]
[394086904,1763258070731,-500.0,0.00018452,2]
[394086905,1763258070756,-408.84004118,0.00018452,2]
[394086906,1763258070781,-500.0,0.00018452,2]
[394086907,1763258070807,-500.0,0.00018452,2]
[394086908,1763258070832,-500.0,0.00018452,2]
[394086909,1763258070860,-500.0,0.00018452,2]
[394086910,1763258070890,-500.0,0.00018452,2]
[394086911,1763258070914,-500.0,0.00018452,2]
[394086912,1763258070942,-500.0,0.00018452,2]
[394086913,1763258070965,-500.0,0.00018452,2]
[394086914,1763258071004,-500.0,0.00018452,2]
[394086915,1763258071032,-500.0,0.00018452,2]
[394086916,1763258071059,-500.0,0.00018452,2]
[394086917,1763258071084,-500.0,0.00018452,2]
[394086918,1763258071112,-500.0,0.00018452,2]
[394086919,1763258071141,-500.0,0.00018452,2]
[394086920,1763258071171,-346.04950154,0.00018452,2]
[394086921,1763258071201,-500.0,0.00018452,2]
[394086922,1763258071329,-500.0,0.00018452,2]
[394086923,1763258071356,-500.0,0.00018452,2]
[394086924,1763258071386,-500.0,0.00018452,2]
[394086925,1763258071413,-500.0,0.00018452,2]
[394086926,1763258071438,-500.0,0.00018452,2]
[394086927,1763258071470,-500.0,0.00018452,2]
[394086928,1763258071497,-500.0,0.00018452,2]
[394086929,1763258071522,-500.0,0.00018452,2]
[394086930,1763258071547,-500.0,0.00018452,2]
[394086931,1763258071571,-500.0,0.00018452,2]
[394086932,1763258071597,-500.0,0.00018452,2]
[394086933,1763258071621,-500.0,0.00018452,2]
[394086934,1763258071647,-500.0,0.00018452,2]
[394086935,1763258071673,-500.0,0.00018452,2]
[394086936,1763258071698,-500.0,0.00018452,2]
[394086937,1763258071721,-383.85189266,0.00018452,2]
[394086938,1763258071746,-500.0,0.00018452,2]
[394086939,1763258071770,-500.0,0.00018452,2]
[394086940,1763258071794,-1083.59106671,0.00018452,2]
[394086941,1763258071817,-1083.59106671,0.00018452,2]
[394086942,1763258071841,-1083.59106671,0.00018452,2]
[394086943,1763258071867,-1083.59106671,0.00018452,2]
[394086944,1763258071892,-1083.59106671,0.00018452,2]
[394086945,1763258071918,-1083.59106671,0.00018452,2]
[394086946,1763258071943,-1083.59106671,0.00018452,2]
[394086947,1763258071967,-1083.59106671,0.00018452,2]
[394086948,1763258072010,-1083.59106671,0.00018452,2]
[394086949,1763258072050,-1083.59106671,0.00018452,2]
[394086950,1763258072092,-1083.59106671,0.00018452,2]
[394086951,1763258072129,-1083.59106671,0.00018452,2]
[394086952,1763258072167,-1083.59106671,0.00018452,2]
[394086953,1763258072205,-1083.59106671,0.00018452,2]
[394086954,1763258072247,-1083.59106671,0.00018452,2]
[394086955,1763258072281,-1083.59106671,0.00018452,2]
[394086956,1763258072319,-1083.59106671,0.00018452,2]
[394086957,1763258072354,-1083.59106671,0.00018452,2]
[394086958,1763258072386,-1083.59106671,0.00018452,2]
[394086959,1763258072419,-1083.59106671,0.00018452,2]
[394086960,1763258072451,-1083.59106671,0.00018452,2]
[394086961,1763258072484,-1083.59106671,0.00018452,2]
[394086962,1763258072517,-1083.59106671,0.00018452,2]
[394086963,1763258072548,-1083.59106671,0.00018452,2]
[394086964,1763258072581,-1083.59106671,0.00018452,2]
[394086965,1763258072614,-1083.59106671,0.00018452,2]
[394086966,1763258072647,-1083.59106671,0.00018452,2]
[394086967,1763258072681,-1083.59106671,0.00018452,2]
[394086968,1763258072715,-1083.59106671,0.00018452,2]
[394086969,1763258072747,-1083.59106671,0.00018452,2]
[394086970,1763258072780,-1083.59106671,0.00018452,2]
[394086971,1763258072813,-1083.59106671,0.00018452,2]
[394086972,1763258072837,-1083.59106671,0.00018452,2]
[394086973,1763258072987,-1083.59106671,0.00018452,2]
[394086974,1763258073012,-1083.59106671,0.00018452,2]
[394086975,1763258073038,-1083.59106671,0.00018452,2]
[394086976,1763258073063,-1083.59106671,0.00018452,2]
[394086977,1763258073098,-1083.59106671,0.00018452,2]
[394086978,1763258073125,-1083.59106671,0.00018452,2]
[394086979,1763258073149,-322.12482691,0.00018452,2]
[394086980,1763258073174,-1083.59106671,0.00018452,2]
[394086981,1763258073200,-1083.59106671,0.00018452,2]
[394086982,1763258073226,-1083.59106671,0.00018452,2]
[394086983,1763258073251,-1083.59106671,0.00018452,2]
[394086984,1763258073276,-1083.59106671,0.00018452,2]
[394086985,1763258073301,-1083.59106671,0.00018452,2]
[394086986,1763258073326,-1083.59106671,0.00018452,2]
[394086987,1763258073351,-1083.59106671,0.00018452,2]
[394086988,1763258073376,-1083.59106671,0.00018452,2]
[394086989,1763258073404,-1083.59106671,0.00018452,2]
[394086990,1763258073427,-500.0,0.00018452,2]
[394086991,1763258073451,-500.0,0.00018452,2]
[394086992,1763258073475,-500.0,0.00018452,2]
[394086993,1763258073498,-500.0,0.00018452,2]
[394086994,1763258073520,-500.0,0.00018452,2]
[394086995,1763258073543,-500.0,0.00018452,2]